Body,Body Name,Date,TransNo,Amount � (Excl VAT),Supplier name,Description,Expense Area,Expense Type,Expense Code,
http://opendatacommunities.org/id/london-borough-council/sutton,London Borough of Sutton,09/03/2022,10006994,12.99, SITEGROUND HOSTING,ADS - COVID,Peoples Services,Publicity,A44266,
http://opendatacommunities.org/id/london-borough-council/sutton,London Borough of Sutton,05/03/2022,10006994,116.79, FACEBK V52H8EPAL2,SPLIT - NOT ALONE (58.4%),Peoples Services,Publicity,A44266,
http://opendatacommunities.org/id/london-borough-council/sutton,London Borough of Sutton,22/03/2022,10006994,8.32, TWINKL,TWINKL SUBSCRIPTION,Health and Wellbeing,Equipment And Materials Purchase,A40000,
http://opendatacommunities.org/id/london-borough-council/sutton,London Borough of Sutton,22/03/2022,10006994,4.17, POUNDLAND LTD 1211,TOYS & EQUIPMENT,Health and Wellbeing,Equipment And Materials Purchase,A40000,
http://opendatacommunities.org/id/london-borough-council/sutton,London Borough of Sutton,22/03/2022,10006994,19.33, POUNDLAND,TOYS & EQUIPMENT,Health and Wellbeing,Equipment And Materials Purchase,A40000,
http://opendatacommunities.org/id/london-borough-council/sutton,London Borough of Sutton,03/03/2022,10006994,37.50, THE BOLD TYPE LTD,OUT OF SCHOOL ALLIANCE,Health and Wellbeing,Equipment And Materials Purchase,A40000,
http://opendatacommunities.org/id/london-borough-council/sutton,London Borough of Sutton,11/03/2022,10006994,47.61, AMZNMKTPLACE AMAZON.CO,HAF RESOURCES,Health and Wellbeing,Equipment And Materials Purchase,A40000,
http://opendatacommunities.org/id/london-borough-council/sutton,London Borough of Sutton,10/03/2022,10006994,7.32, AMZNMKTPLACE AMAZON.CO,HAF RESOURCES,Health and Wellbeing,Equipment And Materials Purchase,A40000,
http://opendatacommunities.org/id/london-borough-council/sutton,London Borough of Sutton,08/03/2022,10006994,50.00, EBAY O 20-08353-65685,GLUE STICKS,Health and Wellbeing,Equipment And Materials Purchase,A40000,
http://opendatacommunities.org/id/london-borough-council/sutton,London Borough of Sutton,08/03/2022,10006994,13.75, AMZNMKTPLACE AMAZON.CO,TOYS AND EQUIPMENT,Health and Wellbeing,Equipment And Materials Purchase,A40000,
http://opendatacommunities.org/id/london-borough-council/sutton,London Borough of Sutton,07/03/2022,10006994,86.69, SAINSBURYS.CO.UK,GROCERIES,Health and Wellbeing,Provisions,A41006,
http://opendatacommunities.org/id/london-borough-council/sutton,London Borough of Sutton,21/03/2022,10006994,85.55, SAINSBURYS.CO.UK,GROCERIES,Health and Wellbeing,Provisions,A41006,
http://opendatacommunities.org/id/london-borough-council/sutton,London Borough of Sutton,28/02/2022,10006994,27.86, SAINSBURYS S/MKTS,GROCERIES,Health and Wellbeing,Provisions,A41006,
http://opendatacommunities.org/id/london-borough-council/sutton,London Borough of Sutton,06/03/2022,10006994,109.16, AMZNMKTPLACE AMAZON.CO,TROLLEY TO DELIVER SUNSHINE RHYMETIMES,Health and Wellbeing,Equipment And Materials Purchase,A40000,
http://opendatacommunities.org/id/london-borough-council/sutton,London Borough of Sutton,06/03/2022,10006994,109.16, AMZNMKTPLACE AMAZON.CO,TROLLEY TO DELIVER SUNSHINE RHYMETIMES,Health and Wellbeing,Equipment And Materials Purchase,A40000,
http://opendatacommunities.org/id/london-borough-council/sutton,London Borough of Sutton,06/03/2022,10006994,109.16, AMZNMKTPLACE AMAZON.CO,TROLLEY TO DELIVER SUNSHINE RHYMETIMES,Health and Wellbeing,Equipment And Materials Purchase,A40000,
http://opendatacommunities.org/id/london-borough-council/sutton,London Borough of Sutton,22/03/2022,10006994,3.33, EB  REFUND TO BUYER,REFUND FOR EVENT,Health and Wellbeing,Equipment And Materials Purchase,A40000,
http://opendatacommunities.org/id/london-borough-council/sutton,London Borough of Sutton,18/03/2022,10006994,20.83, FIRST FLOWERS DIRECT L,FLOWER ARTIST  FOR DIVERSITY MURAL HANDOVER EVENT,Health and Wellbeing,Equipment And Materials Purchase,A40000,
http://opendatacommunities.org/id/london-borough-council/sutton,London Borough of Sutton,24/03/2022,10006994,15.43, AMZNBUSINESS 215GH29V4,SD CARDS FOR CAMERA,Health and Wellbeing,Equipment And Materials Purchase,A40000,
http://opendatacommunities.org/id/london-borough-council/sutton,London Borough of Sutton,08/03/2022,10006994,16.78, CAKES & BAKES,CAKE FOR INTERNATIONAL WOMEN'S DAY,Health and Wellbeing,Catering,A41000,
http://opendatacommunities.org/id/london-borough-council/sutton,London Borough of Sutton,06/03/2022,10006994,109.16, AMZNMKTPLACE AMAZON.CO,CAKE FOR INT'L WOMEN'S DAY EVENT,Health and Wellbeing,Catering,A41000,
http://opendatacommunities.org/id/london-borough-council/sutton,London Borough of Sutton,24/03/2022,10006994,17.47, AMZNMKTPLACE AMAZON.CO,EQUIPMENT FOR WHITEHALL EVENTS,Health and Wellbeing,Equipment And Materials Purchase,A40000,
http://opendatacommunities.org/id/london-borough-council/sutton,London Borough of Sutton,06/03/2022,10006994,9.25, SNAP INC SNAP SNAP ADS,COVID ADS,Health and Wellbeing,Publicity,A44266,
http://opendatacommunities.org/id/london-borough-council/sutton,London Borough of Sutton,05/03/2022,10006994,6.60, SNAP INC SNAP SNAP ADS,COVID ADS,Health and Wellbeing,Provider Contract Payments,A44290,
http://opendatacommunities.org/id/london-borough-council/sutton,London Borough of Sutton,04/03/2022,10006994,4.70, SNAP INC SNAP SNAP ADS,COVID ADS,Health and Wellbeing,Provider Contract Payments,A44290,
http://opendatacommunities.org/id/london-borough-council/sutton,London Borough of Sutton,05/03/2022,10006994,17.40, TWITTER ONLINE ADS,ADS - COVID,Health and Wellbeing,Provider Contract Payments,A44290,
http://opendatacommunities.org/id/london-borough-council/sutton,London Borough of Sutton,16/03/2022,10006994,51.02, FACEBK 7RDUWCFAL2,SPLIT - COVID (25.51%),Health and Wellbeing,Provider Contract Payments,A44290,
http://opendatacommunities.org/id/london-borough-council/sutton,London Borough of Sutton,12/03/2022,10006994,24.50, TWITTER ONLINE ADS,SPLIT - COVID (53.85%),Health and Wellbeing,Provider Contract Payments,A44290,
http://opendatacommunities.org/id/london-borough-council/sutton,London Borough of Sutton,05/03/2022,10006994,39.26, FACEBK V52H8EPAL2,SPLIT - COVID (19.63%),Health and Wellbeing,Provider Contract Payments,A44290,
http://opendatacommunities.org/id/london-borough-council/sutton,London Borough of Sutton,03/03/2022,10006994,1.89, SNAP INC SNAP SNAP ADS,COVID ADS,Health and Wellbeing,Provider Contract Payments,A44290,
http://opendatacommunities.org/id/london-borough-council/sutton,London Borough of Sutton,22/03/2022,10006994,7.66, SNAP INC SNAP SNAP ADS,COVID TEST AND TRACE,Health and Wellbeing,Provider Contract Payments,A44290,
http://opendatacommunities.org/id/london-borough-council/sutton,London Borough of Sutton,21/03/2022,10006994,10.62, SNAP INC SNAP SNAP ADS,COVID TEST TRACE,Health and Wellbeing,Provider Contract Payments,A44290,
http://opendatacommunities.org/id/london-borough-council/sutton,London Borough of Sutton,27/03/2022,10006994,10.64, SNAP INC SNAP SNAP ADS,COVID ADVERTS,Health and Wellbeing,Provider Contract Payments,A44290,
http://opendatacommunities.org/id/london-borough-council/sutton,London Borough of Sutton,26/03/2022,10006994,24.50, TWITTER ONLINE ADS,COVID TEST AND TRACE,Health and Wellbeing,Provider Contract Payments,A44290,
http://opendatacommunities.org/id/london-borough-council/sutton,London Borough of Sutton,26/03/2022,10006994,8.93, SNAP INC SNAP SNAP ADS,COVID ADVERTS,Health and Wellbeing,Provider Contract Payments,A44290,
http://opendatacommunities.org/id/london-borough-council/sutton,London Borough of Sutton,25/03/2022,10006994,6.82, SNAP INC SNAP SNAP ADS,COVID TEST AND TRACE,Health and Wellbeing,Provider Contract Payments,A44290,
http://opendatacommunities.org/id/london-borough-council/sutton,London Borough of Sutton,24/03/2022,10006994,6.83, SNAP INC SNAP SNAP ADS,COVID TEST AND TRACE,Health and Wellbeing,Provider Contract Payments,A44290,
http://opendatacommunities.org/id/london-borough-council/sutton,London Borough of Sutton,23/03/2022,10006994,7.15, SNAP INC SNAP SNAP ADS,COVID TEST AND TRACE,Health and Wellbeing,Provider Contract Payments,A44290,
http://opendatacommunities.org/id/london-borough-council/sutton,London Borough of Sutton,25/03/2022,10006994,39.12, FACEBK 652AGEKAL2,SPLIT - A44290 D70230 - COVID (19.56%),Health and Wellbeing,Provider Contract Payments,A44290,
http://opendatacommunities.org/id/london-borough-council/sutton,London Borough of Sutton,23/03/2022,10006994,23.16, FACEBK QJZENDBAL2,SPLIT - COVID (24.03%),Health and Wellbeing,Provider Contract Payments,A44290,
http://opendatacommunities.org/id/london-borough-council/sutton,London Borough of Sutton,20/03/2022,10006994,2.15, SNAP INC SNAP SNAP ADS,COVID TEST AND TRACE,Health and Wellbeing,Provider Contract Payments,A44290,
http://opendatacommunities.org/id/london-borough-council/sutton,London Borough of Sutton,19/03/2022,10006994,32.00, TWITTER ONLINE ADS,TEST AND TRACE,Health and Wellbeing,Provider Contract Payments,A44290,
http://opendatacommunities.org/id/london-borough-council/sutton,London Borough of Sutton,20/03/2022,10006994,54.80, FACEBK D9AGKC3AL2,SPLIT - COVID (27.4%),Health and Wellbeing,Provider Contract Payments,A44290,
http://opendatacommunities.org/id/london-borough-council/sutton,London Borough of Sutton,24/03/2022,10006994,"1,311.00", DOCUSIGN INC. GBP,DOCUSIGN STAND COMMERCIAL PLAN UPGRADE,Resources,IT Software Purchase,A45040,
http://opendatacommunities.org/id/london-borough-council/sutton,London Borough of Sutton,03/03/2022,10006994,8.32, SPOTIFY UK,MUSIC FOR CEREMONIES,Health and Wellbeing,Subscriptions,A47010,
http://opendatacommunities.org/id/london-borough-council/sutton,London Borough of Sutton,22/03/2022,10006994,5.50, WILKO RETAIL LIMITED,REPLACEMENT FRAME FOR HRH CITIZENSHIP CEREMONIES PHOTO,Health and Wellbeing,Miscellaneous Expenses,A49000,
http://opendatacommunities.org/id/london-borough-council/sutton,London Borough of Sutton,12/03/2022,10006994,50.89, CARTRIDGE SAVE,RICOH INK CARTRIDGE FOR PRINTER AT AJ CC WEDNESDAY R/O,Health and Wellbeing,Miscellaneous Expenses,A49000,
http://opendatacommunities.org/id/london-borough-council/sutton,London Borough of Sutton,05/03/2022,10006994,16.91, SELCO TRADING CTR,FENCE/BENCH PAINT FOR RUSSETTINGS GARDEN,Health and Wellbeing,Miscellaneous Expenses,A49000,
http://opendatacommunities.org/id/london-borough-council/sutton,London Borough of Sutton,03/03/2022,10006994,191.16, IW GROUP SERVICES (UK),SUTTON POINT SPACE MEETING ROOM CT&S AWAY DAY 3RD MARCH 2022,Resources,Miscellaneous Expenses,A49000,
http://opendatacommunities.org/id/london-borough-council/sutton,London Borough of Sutton,19/03/2022,10006994,5.34, PORTANT.CO,MONTHLY SUBSCRIPTION,Peoples Services,Business Support Support,H10011,
http://opendatacommunities.org/id/london-borough-council/sutton,London Borough of Sutton,01/03/2022,10006994,13.59, UKVI,FEES FOR DIGITAL INSPIRATION 59.40 FEBRUARY I-C0DBUC1CT3PR.PDF,Peoples Services,Business Support Support,H10011,
http://opendatacommunities.org/id/london-borough-council/sutton,London Borough of Sutton,23/03/2022,10006994,-71.67, DOCUSIGN INC. GBP,PRORATED REFUND FROM PREVIOUS DOCUSIGN PACKAGE,Resources,IT Software Purchase,A45040,
http://opendatacommunities.org/id/london-borough-council/sutton,London Borough of Sutton,16/03/2022,10006994,4.10, FACEBK 7RDUWCFAL2,SPLIT - COMMUNITY AWARDS (2.05%),Resources,Publicity,A44266,
http://opendatacommunities.org/id/london-borough-council/sutton,London Borough of Sutton,12/03/2022,10006994,21.00, TWITTER ONLINE ADS,SPLIT - COMMUNITY AWARDS (46.15%),Resources,Publicity,A44266,
http://opendatacommunities.org/id/london-borough-council/sutton,London Borough of Sutton,12/03/2022,10006994,200.00, FACEBK Q5PLDC3AL2,ADS - COVID,Resources,Publicity,A44266,
http://opendatacommunities.org/id/london-borough-council/sutton,London Borough of Sutton,05/03/2022,10006994,27.72, FACEBK V52H8EPAL2,SPLIT - ADDS COMMUNITY AWARDS (13.86%),Resources,Publicity,A44266,
http://opendatacommunities.org/id/london-borough-council/sutton,London Borough of Sutton,01/03/2022,10006994,83.35, TWITTER ONLINE ADS,ADS COMMUNITY AWARDS,Resources,Publicity,A44266,
http://opendatacommunities.org/id/london-borough-council/sutton,London Borough of Sutton,05/03/2022,10006994,11.32, FACEBK V52H8EPAL2,SPLIT - ADDS COMMUNITY AWARDS (5.66%),Resources,Publicity,A44266,
http://opendatacommunities.org/id/london-borough-council/sutton,London Borough of Sutton,05/03/2022,10006994,4.91, FACEBK V52H8EPAL2,SPLIT - ADDS COMMUNITY AWARDS (2.46%),Resources,Publicity,A44266,
http://opendatacommunities.org/id/london-borough-council/sutton,London Borough of Sutton,23/03/2022,10006994,1.76, FACEBK QJZENDBAL2,SPLIT - COMMUNITY AWARDS (1.83%),Resources,Publicity,A44266,
http://opendatacommunities.org/id/london-borough-council/sutton,London Borough of Sutton,25/03/2022,10006994,3.39, FACEBK 652AGEKAL2,SPLIT - A44266 E42900 - COMMUNITY AWARDS (1.7%),Resources,Publicity,A44266,
http://opendatacommunities.org/id/london-borough-council/sutton,London Borough of Sutton,25/03/2022,10006994,124.53, FACEBK 652AGEKAL2,SPLIT - A44266 E42900 - SUTTON SPRING CLEAN (62.27%),Resources,Publicity,A44266,
http://opendatacommunities.org/id/london-borough-council/sutton,London Borough of Sutton,23/03/2022,10006994,71.45, FACEBK QJZENDBAL2,SPLIT - SUTTON SPRING CLEAN (74.14%),Resources,Publicity,A44266,
http://opendatacommunities.org/id/london-borough-council/sutton,London Borough of Sutton,20/03/2022,10006994,140.91, FACEBK D9AGKC3AL2,SPLIT - SUTTON SPRING CLEAN (70.46%),Resources,Publicity,A44266,
http://opendatacommunities.org/id/london-borough-council/sutton,London Borough of Sutton,21/03/2022,10006994,229.85, MAILCHIMP,MAILCHIMP SUBSCRIPTION,Resources,Publicity,A44266,
http://opendatacommunities.org/id/london-borough-council/sutton,London Borough of Sutton,21/03/2022,10006994,3.76, MAILCHIMP,MAILCHIMP FOREIGN EXCHANGE FEE,Resources,Publicity,A44266,
http://opendatacommunities.org/id/london-borough-council/sutton,London Borough of Sutton,18/03/2022,10006994,136.77, CANVA  I03364-0780533,CANVA DESIGN SUBSCRIPTION,Resources,Publicity,A44266,
http://opendatacommunities.org/id/london-borough-council/sutton,London Borough of Sutton,15/03/2022,10006994,8.64, MAILCHIMP,MAILCHIMP FOREIGN EXCHANGE FEE,Resources,Publicity,A44266,
http://opendatacommunities.org/id/london-borough-council/sutton,London Borough of Sutton,14/03/2022,10006994,261.83, MAILCHIMP    MISC,MAILCHIMP SUBSCRIPTION,Resources,Publicity,A44266,
http://opendatacommunities.org/id/london-borough-council/sutton,London Borough of Sutton,14/03/2022,10006994,0.40, FOREIGN EXCHANGE FEE,FOREIGN EXCHANGE FEE,Resources,Publicity,A44266,
http://opendatacommunities.org/id/london-borough-council/sutton,London Borough of Sutton,12/03/2022,10006994,12.13, CLIPCHAMP.COM,CLIPCHAMP SUBSCRIPTION,Resources,Publicity,A44266,
http://opendatacommunities.org/id/london-borough-council/sutton,London Borough of Sutton,04/03/2022,10006994,0.27, OTTER.AI,OTTER AI EXCHANGE FEE,Resources,Publicity,A44266,
http://opendatacommunities.org/id/london-borough-council/sutton,London Borough of Sutton,20/03/2022,10006994,4.29, FACEBK D9AGKC3AL2,SPLIT - COMMUNITY AWARDS (2.15%),Resources,Publicity,A44266,
http://opendatacommunities.org/id/london-borough-council/sutton,London Borough of Sutton,16/03/2022,10006994,144.88, FACEBK 7RDUWCFAL2,SPLIT - SUTTON SPRING CLEAN (72.44%),Resources,Publicity,A44266,
http://opendatacommunities.org/id/london-borough-council/sutton,London Borough of Sutton,03/03/2022,10006994,8.16, OTTER.AI,OTTER.AI SUBSCRIPTION,Resources,Publicity,A44266,
http://opendatacommunities.org/id/london-borough-council/sutton,London Borough of Sutton,01/03/2022,10006994,83.33, GOOGLE ADS8517410550,GOOGLE AD - DOMESTIC ABUSE CAMPAIGN,Resources,Publicity,A44266,
http://opendatacommunities.org/id/london-borough-council/sutton,London Borough of Sutton,17/03/2022,10006994,254.95, ARGOS LTD,CL&G,Resources,"Grants, Contributions & Donations",A47005,
http://opendatacommunities.org/id/london-borough-council/sutton,London Borough of Sutton,16/03/2022,10006994,20.00, OYSTER BUS AUTOLOAD,CL&G,Resources,"Grants, Contributions & Donations",A47005,
http://opendatacommunities.org/id/london-borough-council/sutton,London Borough of Sutton,14/03/2022,10006994,230.00, ARGOS LTD,CL&G,Resources,"Grants, Contributions & Donations",A47005,
http://opendatacommunities.org/id/london-borough-council/sutton,London Borough of Sutton,14/03/2022,10006994,219.99, ARGOS LTD,CL&G,Resources,"Grants, Contributions & Donations",A47005,
http://opendatacommunities.org/id/london-borough-council/sutton,London Borough of Sutton,11/03/2022,10006994,474.99, ARGOS LTD,CL&G,Resources,"Grants, Contributions & Donations",A47005,
http://opendatacommunities.org/id/london-borough-council/sutton,London Borough of Sutton,11/03/2022,10006994,190.00, ARGOS LTD,CL&G,Resources,"Grants, Contributions & Donations",A47005,
http://opendatacommunities.org/id/london-borough-council/sutton,London Borough of Sutton,11/03/2022,10006994,514.98, ARGOS LTD,CL&G,Resources,"Grants, Contributions & Donations",A47005,
http://opendatacommunities.org/id/london-borough-council/sutton,London Borough of Sutton,11/03/2022,10006994,370.95, ARGOS LTD,CL&G,Resources,"Grants, Contributions & Donations",A47005,
http://opendatacommunities.org/id/london-borough-council/sutton,London Borough of Sutton,11/03/2022,10006994,171.95, ARGOS LTD,CL&G,Resources,"Grants, Contributions & Donations",A47005,
http://opendatacommunities.org/id/london-borough-council/sutton,London Borough of Sutton,10/03/2022,10006994,219.99, ARGOS LTD,CL&G,Resources,"Grants, Contributions & Donations",A47005,
http://opendatacommunities.org/id/london-borough-council/sutton,London Borough of Sutton,10/03/2022,10006994,552.95, ARGOS LTD,CL&G,Resources,"Grants, Contributions & Donations",A47005,
http://opendatacommunities.org/id/london-borough-council/sutton,London Borough of Sutton,10/03/2022,10006994,-199.99, ARGOS LTD,CL&G,Resources,"Grants, Contributions & Donations",A47005,
http://opendatacommunities.org/id/london-borough-council/sutton,London Borough of Sutton,10/03/2022,10006994,-80.00, ARGOS LTD,CL&G,Resources,"Grants, Contributions & Donations",A47005,
http://opendatacommunities.org/id/london-borough-council/sutton,London Borough of Sutton,09/03/2022,10006994,362.95, ARGOS LTD,CL&G,Resources,"Grants, Contributions & Donations",A47005,
http://opendatacommunities.org/id/london-borough-council/sutton,London Borough of Sutton,09/03/2022,10006994,290.00, ARGOS LTD,CL&G,Resources,"Grants, Contributions & Donations",A47005,
http://opendatacommunities.org/id/london-borough-council/sutton,London Borough of Sutton,09/03/2022,10006994,179.99, ARGOS LTD,CL&G,Resources,"Grants, Contributions & Donations",A47005,
http://opendatacommunities.org/id/london-borough-council/sutton,London Borough of Sutton,09/03/2022,10006994,383.95, ARGOS LTD,CL&G,Resources,"Grants, Contributions & Donations",A47005,
http://opendatacommunities.org/id/london-borough-council/sutton,London Borough of Sutton,09/03/2022,10006994,-383.95, ARGOS LTD,CL&G,Resources,"Grants, Contributions & Donations",A47005,
http://opendatacommunities.org/id/london-borough-council/sutton,London Borough of Sutton,08/03/2022,10006994,259.99, ARGOS LTD,CL&G,Resources,"Grants, Contributions & Donations",A47005,
http://opendatacommunities.org/id/london-borough-council/sutton,London Borough of Sutton,08/03/2022,10006994,185.00, ARGOS LTD,CL&G,Resources,"Grants, Contributions & Donations",A47005,
http://opendatacommunities.org/id/london-borough-council/sutton,London Borough of Sutton,08/03/2022,10006994,383.95, ARGOS LTD,CL&G,Resources,"Grants, Contributions & Donations",A47005,
http://opendatacommunities.org/id/london-borough-council/sutton,London Borough of Sutton,07/03/2022,10006994,609.98, ARGOS LTD,CL&G,Resources,"Grants, Contributions & Donations",A47005,
http://opendatacommunities.org/id/london-borough-council/sutton,London Borough of Sutton,10/03/2022,10006994,479.98, ARGOS LTD,CL&G,Resources,"Grants, Contributions & Donations",A47005,
http://opendatacommunities.org/id/london-borough-council/sutton,London Borough of Sutton,10/03/2022,10006994,549.99, ARGOS LTD,CL&G,Resources,"Grants, Contributions & Donations",A47005,
http://opendatacommunities.org/id/london-borough-council/sutton,London Borough of Sutton,10/03/2022,10006994,350.00, ARGOS LTD,CL&G,Resources,"Grants, Contributions & Donations",A47005,
http://opendatacommunities.org/id/london-borough-council/sutton,London Borough of Sutton,07/03/2022,10006994,259.99, ARGOS LTD,CL&G,Resources,"Grants, Contributions & Donations",A47005,
http://opendatacommunities.org/id/london-borough-council/sutton,London Borough of Sutton,04/03/2022,10006994,189.00, CURRYS ONLINE,CL&G,Resources,"Grants, Contributions & Donations",A47005,
http://opendatacommunities.org/id/london-borough-council/sutton,London Borough of Sutton,04/03/2022,10006994,40.00, OYSTER ONLINE,CL&G,Resources,"Grants, Contributions & Donations",A47005,
http://opendatacommunities.org/id/london-borough-council/sutton,London Borough of Sutton,04/03/2022,10006994,"11,875.00", CS MORRISONS GIFT CARD,CL&G,Resources,"Grants, Contributions & Donations",A47005,
http://opendatacommunities.org/id/london-borough-council/sutton,London Borough of Sutton,28/02/2022,10006994,495.00, ARGOS LTD,CL&G,Resources,"Grants, Contributions & Donations",A47005,
http://opendatacommunities.org/id/london-borough-council/sutton,London Borough of Sutton,28/02/2022,10006994,895.95, ARGOS LTD,CL&G,Resources,"Grants, Contributions & Donations",A47005,
http://opendatacommunities.org/id/london-borough-council/sutton,London Borough of Sutton,28/02/2022,10006994,203.95, ARGOS LTD,CL&G,Resources,"Grants, Contributions & Donations",A47005,
http://opendatacommunities.org/id/london-borough-council/sutton,London Borough of Sutton,28/02/2022,10006994,-80.00, ARGOS LTD,CL&G,Resources,"Grants, Contributions & Donations",A47005,
http://opendatacommunities.org/id/london-borough-council/sutton,London Borough of Sutton,25/03/2022,10006994,32.96, FACEBK 652AGEKAL2,SPLIT -  BUSINESS COVID RELIEF FUND (16.48%),Resources,Printing,A43010,
http://opendatacommunities.org/id/london-borough-council/sutton,London Borough of Sutton,16/03/2022,10006994,4.57, AMAZON.CO.UK 2160B1NO4,EXTENSION LEAD REQUIRED FOR OFFICE ,Resources,Contingency,A49001,
http://opendatacommunities.org/id/london-borough-council/sutton,London Borough of Sutton,15/03/2022,10006994,37.48, AMZNMKTPLACE AMAZON.CO,PICTURES FOR ROOM G9 IN CIVIC (CHILD PROTECTION ROOM) ,Resources,Contingency,A49001,
http://opendatacommunities.org/id/london-borough-council/sutton,London Borough of Sutton,15/03/2022,10006994,79.97, AMZNMKTPLACE,3 TABLES REQUIRED FOR CIVIC RECEPTION FOR RESIDENTS TO USE.,Resources,Contingency,A49001,
http://opendatacommunities.org/id/london-borough-council/sutton,London Borough of Sutton,15/03/2022,10006994,124.17, AO RETAIL LIMITED,PROVISION OF A NEW FRIDGE FOR THE SECURITY TEAM BASED AT CIVIC AS THEY WORK 24/7/365 A YEAR.,Resources,Contingency,A49001,
http://opendatacommunities.org/id/london-borough-council/sutton,London Borough of Sutton,15/03/2022,10006994,16.66, AMZNMKTPLACE,CABLE TIDY REQUIRED FOR MEETING ROOMS AT CIVIC FOLLOWING INSTALLATION OF NEW MEETING ROOM EQUIPMENT AND TVS,Resources,Contingency,A49001,
http://opendatacommunities.org/id/london-borough-council/sutton,London Borough of Sutton,10/03/2022,10006994,7.49, AMZNMKTPLACE AMAZON.CO,FRAME FOR PRAYER ROOM GUIDANCE SO CAN DISPLAYED ON THE WALL AS REQUESTED BY EDI.,Resources,Contingency,A49001,
http://opendatacommunities.org/id/london-borough-council/sutton,London Borough of Sutton,07/03/2022,10006994,20.02, AMAZON.CO.UK 2X6UU71H4,FREE / ENGAGED SIGN FOR THE PRAYER ROOM ON LEVEL 2 CIVIC AS REQUESTED BY THE EQI GROUP,Resources,Contingency,A49001,
http://opendatacommunities.org/id/london-borough-council/sutton,London Borough of Sutton,03/03/2022,10006994,101.40, AMZNMKTPLACE,VARIOUS ITEMS FOR THE LONDON CANCER HUB INNOVATION GATEWAY BUILDING SET UP ,Resources,Contingency,A49001,
http://opendatacommunities.org/id/london-borough-council/sutton,London Borough of Sutton,15/03/2022,10006994,1.50, WWW.GOV.UK,PROBATE SEARCH - 149792,Resources,Legal Services,A44025,
http://opendatacommunities.org/id/london-borough-council/sutton,London Borough of Sutton,15/03/2022,10006994,1.50, WWW.GOV.UK,"PROBATE SEARCH - ""REDACTED - PERSONAL DATA"" 149142",Resources,Legal Services,A44025,
http://opendatacommunities.org/id/london-borough-council/sutton,London Borough of Sutton,03/03/2022,10006994,251.50, IKEA LTD 144 CROYDON M,AFGHAN RESETTLEMENT FURNITURE & EQUIPMENT,Environment Housing and Neighbourhoods,Furniture - Purchase,A40015,
http://opendatacommunities.org/id/london-borough-council/sutton,London Borough of Sutton,03/03/2022,10006994,390.50, DUNELM LTD,AFGHAN RESETTLEMENT FURNITURE & EQUIPMENT,Environment Housing and Neighbourhoods,Furniture - Purchase,A40015,
http://opendatacommunities.org/id/london-borough-council/sutton,London Borough of Sutton,01/03/2022,10006994,430.00, FURNITURE WAREHOUSE,AFGHAN RESETTLEMENT FURNITURE & EQUIPMENT,Environment Housing and Neighbourhoods,Furniture - Purchase,A40015,
http://opendatacommunities.org/id/london-borough-council/sutton,London Borough of Sutton,24/03/2022,10006994,388.20, TRAVELODGE,EMERGENCY ACCOMMODATION FOR HOMELESS HOUSEHOLD UNDER PART VII,Environment Housing and Neighbourhoods,Bed & Breakfast,A56000,
http://opendatacommunities.org/id/london-borough-council/sutton,London Borough of Sutton,15/03/2022,10006994,450.00, HOTEL AT BOOKING.COM,EMERGENCY ACCOMMODATION FOR HOMELESS HOUSEHOLD UNDER PART VII,Environment Housing and Neighbourhoods,Bed & Breakfast,A56000,
http://opendatacommunities.org/id/london-borough-council/sutton,London Borough of Sutton,28/02/2022,10006994,112.49, SCREWFIX DIRECT,PURCHASE OF 6-TREAD PLATFORM STEPLADDER,Environment Housing and Neighbourhoods,Equipment And Materials Purchase,A40000,
http://opendatacommunities.org/id/london-borough-council/sutton,London Borough of Sutton,03/03/2022,10006994,20.83, GEN REGISTER OFFICE,BIRTH CERT REQUIRED FOR COURT PROCEEDINGS,Peoples Services,Equipment And Materials Purchase,A40000,
http://opendatacommunities.org/id/london-borough-council/sutton,London Borough of Sutton,15/03/2022,10006994,48.75, HM PASSPORT OFFICE,PASSPORT APPLICATION,Peoples Services,Equipment And Materials Purchase,A40000,
http://opendatacommunities.org/id/london-borough-council/sutton,London Borough of Sutton,18/03/2022,10006994,48.75, HM PASSPORT OFFICE,PASSPORT OFFICE,Peoples Services,Equipment And Materials Purchase,A40000,
http://opendatacommunities.org/id/london-borough-council/sutton,London Borough of Sutton,16/03/2022,10006994,5.71, POST OFFICE COUNTER,PASSPORT APPLICATION,Peoples Services,Equipment And Materials Purchase,A40000,
http://opendatacommunities.org/id/london-borough-council/sutton,London Borough of Sutton,14/02/2022,10006994,-18.50, GEN REGISTER OFFICE,BIRTH CERTIFICATE (REFUND),Peoples Services,PAT Testing,A40005,
http://opendatacommunities.org/id/london-borough-council/sutton,London Borough of Sutton,16/03/2022,10006994,10.47, SUBWAY 68205 CARSHALTO,DH ACTIVITY,Peoples Services,Miscellaneous Expenses,A49000,
http://opendatacommunities.org/id/london-borough-council/sutton,London Borough of Sutton,03/03/2022,10006994,13.28, AMZNMKTPLACE,JJ FAMILY ACTIVITY,Peoples Services,Miscellaneous Expenses,A49000,
http://opendatacommunities.org/id/london-borough-council/sutton,London Borough of Sutton,04/03/2022,10006994,79.80, MINICABIT,TAXI REQUIRED FOR A SOCIAL WORKER TO COMPLETE A VISIT,Peoples Services,C.C.A Travel & Subsistance,A61010,
http://opendatacommunities.org/id/london-borough-council/sutton,London Borough of Sutton,22/03/2022,10006994,593.00, SUTTON APPLIANCES,SUTTON APPLIANCES,Peoples Services,Set Up Costs - Children Leaving Care,A61021,
http://opendatacommunities.org/id/london-borough-council/sutton,London Borough of Sutton,24/03/2022,10006994,18.95, HOLLYWOOD BOWL,BOWLING - LEAVING CARE TEAM,Peoples Services,Miscellaneous Expenses,A49000,
http://opendatacommunities.org/id/london-borough-council/sutton,London Borough of Sutton,22/03/2022,10006994,464.28, WELCOME BREAK,LEAVING CARE TEAM - ACCOMODATION,Peoples Services,Miscellaneous Expenses,A49000,
http://opendatacommunities.org/id/london-borough-council/sutton,London Borough of Sutton,02/03/2022,10006994,21.67, WWW.HARLOWPLAYHOUSE.CO,ACTIVITY FOR A SUPERVISED CONTACT VISIT,Peoples Services,Miscellaneous Expenses,A49000,
http://opendatacommunities.org/id/london-borough-council/sutton,London Borough of Sutton,01/03/2022,10006994,17.99, AMZNMKTPLACE,REQUIRED FOR A LEAVING CARE PERSON (50%),Peoples Services,Miscellaneous Expenses,A49000,
http://opendatacommunities.org/id/london-borough-council/sutton,London Borough of Sutton,01/03/2022,10006994,17.99, AMZNMKTPLACE,REQUIRED FOR A LEAVING CARE PERSON (50%),Peoples Services,Miscellaneous Expenses,A49000,
http://opendatacommunities.org/id/london-borough-council/sutton,London Borough of Sutton,17/03/2022,10006994,109.62, TRAVELODGE,TRAVEL LODGE,Peoples Services,Miscellaneous Expenses,A49000,
http://opendatacommunities.org/id/london-borough-council/sutton,London Borough of Sutton,17/03/2022,10006994,71.19, TENPIN.CO.UK,BOWLING,Peoples Services,Miscellaneous Expenses,A49000,
http://opendatacommunities.org/id/london-borough-council/sutton,London Borough of Sutton,08/03/2022,10006994,63.33, PREMIER INN,PASSPORT APPLICATION,Peoples Services,Approved Lodgings,A61000,
http://opendatacommunities.org/id/london-borough-council/sutton,London Borough of Sutton,08/03/2022,10006994,709.32, WELCOME BREAK,HOTEL REQUIRED FOR CLIENTS,Peoples Services,Approved Lodgings,A61000,
http://opendatacommunities.org/id/london-borough-council/sutton,London Borough of Sutton,04/03/2022,10006994,33.47, MINICABIT,TAXI REQUIRED FOR A SUPERVISED CONTACT,Peoples Services,C.C.A Travel & Subsistance,A61010,
http://opendatacommunities.org/id/london-borough-council/sutton,London Borough of Sutton,17/03/2022,10006994,124.64, COLCHESTER ZOO WEBSTOR,ZOO VISIT,Peoples Services,Government Grants,A90000,
http://opendatacommunities.org/id/london-borough-council/sutton,London Borough of Sutton,18/03/2022,10006994,99.98, CURRYS ONLINE,CURRYS,Peoples Services,Miscellaneous Expenses,A49000,
http://opendatacommunities.org/id/london-borough-council/sutton,London Borough of Sutton,18/03/2022,10006994,703.33, IKEA LTD SHOP ONLINE,IKEA,Peoples Services,Miscellaneous Expenses,A49000,
http://opendatacommunities.org/id/london-borough-council/sutton,London Borough of Sutton,16/03/2022,10006994,12.00, AMZNMKTPLACE,ITEM NEEDED FOR THE WILLOW RISE CHILDRENS HOME (100%),Peoples Services,Miscellaneous Expenses,A49000,
http://opendatacommunities.org/id/london-borough-council/sutton,London Borough of Sutton,17/03/2022,10006994,49.99, AMZNMKTPLACE,ITEMS NEEDED FOR WILLOW RISE CHILDRENS HOME (100%),Peoples Services,Miscellaneous Expenses,A49000,
http://opendatacommunities.org/id/london-borough-council/sutton,London Borough of Sutton,17/03/2022,10006994,3.09, AMZNMKTPLACE,ITEM NEEDED FOR THE WILLOW RISE CHILDRENS HOME (100%),Peoples Services,Miscellaneous Expenses,A49000,
http://opendatacommunities.org/id/london-borough-council/sutton,London Borough of Sutton,16/03/2022,10006994,121.66, PAYPAL  TEAM TEACH,BOOKS AND EQUIPMENT NEEDED FOR WILLOW RISE CHILDRENS HOME STAFF,Peoples Services,Miscellaneous Expenses,A49000,
http://opendatacommunities.org/id/london-borough-council/sutton,London Borough of Sutton,16/03/2022,10006994,7.99, AMZNMKTPLACE,DRAWSTRING BAG FOR WILLOW RISE (100%),Peoples Services,Miscellaneous Expenses,A49000,
http://opendatacommunities.org/id/london-borough-council/sutton,London Borough of Sutton,23/03/2022,10006994,69.98, AMZNMKTPLACE,SPLIT - LARGE 4 DRAWER PLASTIC MODULAR STORAGE TOWER - BLACK FRAME DESIGN WITH CLEAR DRAWERS - 87CM (H) X 39CM (W) X 39CM (D). (100%),Peoples Services,Miscellaneous Expenses,A49000,
http://opendatacommunities.org/id/london-borough-council/sutton,London Borough of Sutton,23/03/2022,10006994,9.27, AMZNMKTPLACE,"SPLIT - JVL 19-200 ULTRA STRONG RUST RESISTANT CLOTHES PEGS, 36 PIECES (100%)",Peoples Services,Miscellaneous Expenses,A49000,
http://opendatacommunities.org/id/london-borough-council/sutton,London Borough of Sutton,23/03/2022,10006994,15.98, AMZNMKTPLACE AMAZON.CO,SPLIT - FOOD STORAGE LABELS ADHESIVE REMOVABLE FOOD LABELS FOOD STORAGE FREEZER STICKER FOR HOME RESTAURANT FOOD DATE SAFE SUPPLIES (750 PIECES) (100%),Peoples Services,Miscellaneous Expenses,A49000,
http://opendatacommunities.org/id/london-borough-council/sutton,London Borough of Sutton,24/03/2022,10006994,9.98, AMZNMKTPLACE,"SPLIT - BUCASA MOP BROOM HOLDER WALL MOUNTED, BROOM AND MOP RACK ORGANIZER WITH 5 POSITION 6 HOOKS, GARDEN CLEANING TOOLS TIDY ORGANIZER STORAGE FOR CUPBOARD (100%)",Peoples Services,Miscellaneous Expenses,A49000,
http://opendatacommunities.org/id/london-borough-council/sutton,London Borough of Sutton,24/03/2022,10006994,29.99, AMZNMKTPLACE,"SPLIT - LAMINATOR, CRENOVA A4 LAMINATOR GS816, 4 IN 1 THERMAL LAMINATOR, 9 INCHES, 20 LAMINATING POUCHES, PAPER TRIMMER, CORNER ROUNDER (BLACK) (100%)",Peoples Services,Miscellaneous Expenses,A49000,
http://opendatacommunities.org/id/london-borough-council/sutton,London Borough of Sutton,28/02/2022,10006994,27.96, AMZNMKTPLACE AMAZON.CO,ITEM REQUIRED FOR THE YOUNG PERSON AT WILLOW RISE CHILDRENS HOME (73.68%),Peoples Services,Miscellaneous Expenses,A49000,
http://opendatacommunities.org/id/london-borough-council/sutton,London Borough of Sutton,28/02/2022,10006994,9.99, AMZNMKTPLACE AMAZON.CO,ITEM REQUIRED FOR THE YOUNG PERSON AT WILLOW RISE CHILDRENS HOME (26.32%),Peoples Services,Miscellaneous Expenses,A49000,
http://opendatacommunities.org/id/london-borough-council/sutton,London Borough of Sutton,28/02/2022,10006994,5.94, AMZNMKTPLACE AMAZON.CO,ITEMS NEEDED FOR WILLOW RISE CHILDRENS HOME (100%),Peoples Services,Miscellaneous Expenses,A49000,
http://opendatacommunities.org/id/london-borough-council/sutton,London Borough of Sutton,13/03/2022,10006994,5.00, AMZNBUSINESS 2X7228U14,ACTIVITY FOR YOUNG PERSON AT WR (100%),Peoples Services,Miscellaneous Expenses,A49000,
http://opendatacommunities.org/id/london-borough-council/sutton,London Borough of Sutton,28/02/2022,10006994,159.90, ZOOM.US 888-799-9666,SUBSCRIPTION REQUIRED TO COMPLETE TEAM MEETINGS,Peoples Services,Subscriptions,A47010,
http://opendatacommunities.org/id/london-borough-council/sutton,London Borough of Sutton,17/03/2022,10006994,159.90, ZOOM.US 888-799-9666,SUBSCRIPTION NEEDED FOR TEAM MEETINGS,Peoples Services,Subscriptions,A47010,
http://opendatacommunities.org/id/london-borough-council/sutton,London Borough of Sutton,18/03/2022,10006994,70.83, HM PASSPORT OFFICE,PASSPORT OFFICE,Peoples Services,Equipment And Materials Purchase,A40000,
http://opendatacommunities.org/id/london-borough-council/sutton,London Borough of Sutton,21/03/2022,10006994,48.75, HM PASSPORT OFFICE,PASSPORT APPLICATION,Peoples Services,Equipment And Materials Purchase,A40000,
http://opendatacommunities.org/id/london-borough-council/sutton,London Borough of Sutton,08/03/2022,10006994,48.75, HM PASSPORT OFFICE,PASSPORT APPLICATION,Peoples Services,Equipment And Materials Purchase,A40000,
http://opendatacommunities.org/id/london-borough-council/sutton,London Borough of Sutton,10/03/2022,10006994,28.54, POST OFFICE COUNTER,PASSPORT APPLICATION,Peoples Services,Equipment And Materials Purchase,A40000,
http://opendatacommunities.org/id/london-borough-council/sutton,London Borough of Sutton,15/03/2022,10006994,48.75, HM PASSPORT OFFICE,PASSPORT APPLICATION  A40000 G03110,Peoples Services,Equipment And Materials Purchase,A40000,
http://opendatacommunities.org/id/london-borough-council/sutton,London Borough of Sutton,22/03/2022,10006994,48.75, HM PASSPORT OFFICE,PASSPORT APPLICATION,Peoples Services,Equipment And Materials Purchase,A40000,
http://opendatacommunities.org/id/london-borough-council/sutton,London Borough of Sutton,07/03/2022,10006994,20.83, GEN REGISTER OFFICE,BIRTH CERT,Peoples Services,Equipment And Materials Purchase,A40000,
http://opendatacommunities.org/id/london-borough-council/sutton,London Borough of Sutton,04/03/2022,10006994,-20.00, ON-LINE PAYMENT,BIRTH CERT REQUIRED FOR COURT PROCEEDINGS,Peoples Services,Equipment And Materials Purchase,A40000,
http://opendatacommunities.org/id/london-borough-council/sutton,London Borough of Sutton,03/03/2022,10006994,20.00, ON-LINE PAYMENT,BIRTH CERT REQUIRED FOR COURT PROCEEDINGS -  A40000 G03120,Peoples Services,Equipment And Materials Purchase,A40000,
http://opendatacommunities.org/id/london-borough-council/sutton,London Borough of Sutton,16/03/2022,10006994,18.33, SUTTON REGISTER OFFICE,BIRTH CERTIFICATE REQUIRED,Peoples Services,Equipment And Materials Purchase,A40000,
http://opendatacommunities.org/id/london-borough-council/sutton,London Borough of Sutton,23/03/2022,10006994,115.00, MS  THEBEAUMONTHEXHAM,THE BEAUMONT HEXHAM HOTEL,Peoples Services,Client Care/Assistance,A61011,
http://opendatacommunities.org/id/london-borough-council/sutton,London Borough of Sutton,04/03/2022,10006994,729.17, AIRBNB   HM85ZT9BDC,HOTEL WAS REQUIRED FOR AN EMERGENCY PLACEMENT OF A YOUNG PERSON AND FAMILY,Peoples Services,Client Care/Assistance,A61011,
http://opendatacommunities.org/id/london-borough-council/sutton,London Borough of Sutton,04/03/2022,10006994,-520.83, AIRBNB   HM85ZT9BDC,HOTEL NO LONGER REQUIRED,Peoples Services,Client Care/Assistance,A61011,
http://opendatacommunities.org/id/london-borough-council/sutton,London Borough of Sutton,24/03/2022,10006994,527.92, TRAVELODGE,ACCOMODATION,Peoples Services,Bed & Breakfast,A56000,
http://opendatacommunities.org/id/london-borough-council/sutton,London Borough of Sutton,24/03/2022,10006994,527.92, TRAVELODGE,ACCOMODATION,Peoples Services,Bed & Breakfast,A56000,
http://opendatacommunities.org/id/london-borough-council/sutton,London Borough of Sutton,16/03/2022,10006994,9.17, SUTTON REGISTER OFFICE,BIRTH CERTIFICATE REQUIRED,Peoples Services,Miscellaneous Expenses,A49000,
http://opendatacommunities.org/id/london-borough-council/sutton,London Borough of Sutton,24/03/2022,10006994,466.70, HOTEL IBIS,SUTTON IBIS HOTEL PAYMENT,Peoples Services,Bed & Breakfast,A56000,
http://opendatacommunities.org/id/london-borough-council/sutton,London Borough of Sutton,27/03/2022,10006994,38.49, FACEBK  PAC4WA3H32,FACEBOOK ADVERTISING FOR FOSTERING RECRUITMENT,Peoples Services,Recruitment Expenses,A15026,
http://opendatacommunities.org/id/london-borough-council/sutton,London Borough of Sutton,11/03/2022,10006994,70.00, FACEBK  AL2YNABH32,FACEBOOK ADVERTISING FOR FOSTERING RECRUITMENT,Peoples Services,Recruitment Expenses,A15026,
http://opendatacommunities.org/id/london-borough-council/sutton,London Borough of Sutton,16/03/2022,10006994,119.00, HOLIDAY INNS,"1 NIGHT HOLIDAY INN STAY FOR ""REDACTED - PERSONAL DATA"" (INDEPENDENT CHAIR) - 16 MARCH TO 17 MARCH. 2 NIGHTS WERE ORIGINALLY BOOKED BUT 1 NIGHT CANCELLED SO 119 PAID IN TOTAL",Peoples Services,Hire of Rooms,A22010,
http://opendatacommunities.org/id/london-borough-council/sutton,London Borough of Sutton,16/03/2022,10006994,22.58, WM MORRISONS STORE,BISCUITS FOR LSCP EVENT ON 17 MARCH 2022,Peoples Services,Catering,A41000,
http://opendatacommunities.org/id/london-borough-council/sutton,London Borough of Sutton,28/02/2022,10006994,320.00, SURVEYMONK  T 42148976,SUBSCRIPTION REQUIRED TO COMPLETE ASSESSMENTS,Peoples Services,Subscriptions,A47010,
http://opendatacommunities.org/id/london-borough-council/sutton,London Borough of Sutton,10/03/2022,10006994,931.00, S.C.T.S,X4 TRAINING SESSIONS BOOKED THROUGH SOCIAL CARE TRAINING SOLUTIONS,Peoples Services,Staff Development And Training,A15022,
http://opendatacommunities.org/id/london-borough-council/sutton,London Borough of Sutton,10/03/2022,10006994,931.00, S.C.T.S,X4 TRAINING SESSIONS BOOKED THROUGH SOCIAL CARE TRAINING SOLUTIONS,Peoples Services,Staff Development And Training,A15022,
http://opendatacommunities.org/id/london-borough-council/sutton,London Borough of Sutton,23/03/2022,10006994,41.67, AMAZON.CO.UK 211YM2S64,AMAZON VOUCHER AS THANK YOU FOR TRAINING,Peoples Services,Achievements Awards And Prizes,A49002,
http://opendatacommunities.org/id/london-borough-council/sutton,London Borough of Sutton,22/02/2022,10006994,-248.70, UKVI,326.00 USD APPLICATION COMPLETE R.PDF,Peoples Services,Approved Workers,A61001,
http://opendatacommunities.org/id/london-borough-council/sutton,London Borough of Sutton,12/03/2022,10006994,"1,823.00", HOLIDAY INN SOUTH NORM,HOLIDAY INN PAYMENT,Peoples Services,Client Care/Assistance,A61011,
http://opendatacommunities.org/id/london-borough-council/sutton,London Borough of Sutton,25/03/2022,10006994,"1,174.58", HOTEL AT BOOKING.COM,FAMILY ACCOMODATION - GREEN WEST LOCALITY,Peoples Services,Client Care/Assistance,A61011,
http://opendatacommunities.org/id/london-borough-council/sutton,London Borough of Sutton,26/03/2022,10006994,"1,964.00", HOLIDAY INN SOUTH NORM,HOTEL STAY,Peoples Services,Client Care/Assistance,A61011,
http://opendatacommunities.org/id/london-borough-council/sutton,London Borough of Sutton,21/03/2022,10006994,-6.84, UKVI,VISA APPLICATION COSTS,Peoples Services,Equipment And Materials Purchase,A40000,
http://opendatacommunities.org/id/london-borough-council/sutton,London Borough of Sutton,21/03/2022,10006994,0.15, UKVI,VISA APPLICATION CREDIT CARD FEES,Peoples Services,Equipment And Materials Purchase,A40000,
http://opendatacommunities.org/id/london-borough-council/sutton,London Borough of Sutton,25/03/2022,10006994,"1,236.25", HOTEL IBIS,"1,236.25 A56000 G03840 9999 IBIS.PDF",Peoples Services,Bed & Breakfast,A56000,
http://opendatacommunities.org/id/london-borough-council/sutton,London Borough of Sutton,28/02/2022,10006994,494.02, UKVI,"$657 ""REDACTED - PERSONAL DATA"".PDF",Peoples Services,Approved Workers,A61001,
http://opendatacommunities.org/id/london-borough-council/sutton,London Borough of Sutton,24/03/2022,10006994,"1,779.00", TRAVELHOUSE,TRAVEL HOUSE PAYMENT,Peoples Services,C.C.A Travel & Subsistance,A61010,
http://opendatacommunities.org/id/london-borough-council/sutton,London Borough of Sutton,11/11/2021,10006994,"-2,500.00", C2E798600426T UKVI,REFUND - CERTIFICATE OF SPONSORSHIP,Peoples Services,Client Care/Assistance,A61011,
http://opendatacommunities.org/id/london-borough-council/sutton,London Borough of Sutton,22/03/2022,10006994,100.80, THOMASKNEALE.CO.UK,THOMAS KNEALE & CO LTD,Peoples Services,Client Care/Assistance,A61011,
http://opendatacommunities.org/id/london-borough-council/sutton,London Borough of Sutton,21/03/2022,10006994,13.29, AMZNMKTPLACE,"SPLIT - HOMECRAFT DELUXE INFLATABLE HAIR WASHING BASIN, WASH HAIR IN BED, FOR INJURED, ELDERLY, DISABLED, HANDICAPPED, EASILY CLEAN HAIR, LIVING AID (100%)",Peoples Services,Client Care/Assistance,A61011,
http://opendatacommunities.org/id/london-borough-council/sutton,London Borough of Sutton,01/03/2022,10006994,89.03, STORAGEMART UK A-0F547,STORAGE REQUIRED FOR YOUNG PERSON BEFORE THEY MOVE INTO A HOUSE,Peoples Services,Storage And Archiving Services,A44085,
http://opendatacommunities.org/id/london-borough-council/sutton,London Borough of Sutton,02/03/2022,10006994,66.67, ACCESS SUTTON,STORAGE REQUIRED FOR YOUNG PERSON BEFORE THEY MOVE INTO A HOUSE,Peoples Services,Storage And Archiving Services,A44085,
http://opendatacommunities.org/id/london-borough-council/sutton,London Borough of Sutton,18/03/2022,10006994,-775.00, CITIZENM AMSTERDAM SOU,"REFUND FOR SOCIETY M CITIZEN DAY ON THE 6TH MAY 2022 FOR""REDACTED - PERSONAL DATA""",Peoples Services,Staff Development And Training,A15022,
http://opendatacommunities.org/id/london-borough-council/sutton,London Borough of Sutton,11/03/2022,10006994,463.90, WWW.LEARNDIRECT.COM,"IAG COURSE - ""REDACTED - PERSONAL DATA""",Health and Wellbeing,Staff Development And Training,A15022,
http://opendatacommunities.org/id/london-borough-council/sutton,London Borough of Sutton,07/03/2022,10006994,114.11, COSTCO WHOLESALE #121,VENDING MACHINE SUPPLIES,Health and Wellbeing,Provisions,A41006,
http://opendatacommunities.org/id/london-borough-council/sutton,London Borough of Sutton,03/03/2022,10006994,37.76, GOOGLE CLOUD EMEA LIMI,GOOGLE CLOUD EMEA 4078489050 FEB 22,Health and Wellbeing,Subscriptions,A47010,
http://opendatacommunities.org/id/london-borough-council/sutton,London Borough of Sutton,16/03/2022,10006994,9.99, AMZNMKTPLACE,SPLIT - GOLD FOIL WRAPPED MILK CHOCOLATE HEARTS WEDDING PARTY TABLE FAVOURS - 100 PK (100%),Health and Wellbeing,Publicity,A44266,
http://opendatacommunities.org/id/london-borough-council/sutton,London Borough of Sutton,16/03/2022,10006994,7.65, AMZNMKTPLACE,SPLIT - CHALK MARKER - 8 BRILLIANT BRIGHT COLORS LIQUID CHALK INK PENS - 6MM CHISEL NIB - WET WIPE ERASE - GAINWELL (100%),Health and Wellbeing,Publicity,A44266,
http://opendatacommunities.org/id/london-borough-council/sutton,London Borough of Sutton,16/03/2022,10006994,20.82, AMZNMKTPLACE,SPLIT - 10 X A5 ACRYLIC POSTER MENU HOLDER PERSPEX LEAFLET DISPLAY STANDS (100%),Health and Wellbeing,Publicity,A44266,
http://opendatacommunities.org/id/london-borough-council/sutton,London Borough of Sutton,14/03/2022,10006994,41.49, PAYPAL  BIGART,BIG ART & BANNERS CORREX SIGN 49.79 140322,Health and Wellbeing,Publicity,A44266,
http://opendatacommunities.org/id/london-borough-council/sutton,London Borough of Sutton,14/03/2022,10006994,51.66, INSTANTPRINT.CO.UK,INSTANTPRINT SQUARE CARDS 2 TREES 61.99 140322,Health and Wellbeing,Publicity,A44266,
http://opendatacommunities.org/id/london-borough-council/sutton,London Borough of Sutton,08/03/2022,10006994,47.99, ADOBE STOCK,ADOBE 070322 47.99,Health and Wellbeing,Publicity,A44266,
http://opendatacommunities.org/id/london-borough-council/sutton,London Borough of Sutton,07/03/2022,10006994,100.00, WWW.INSTANTPRINT.C,INSTANTPRINT DOUBLE SIDED WALKWAY 070322 120.00,Health and Wellbeing,Publicity,A44266,
http://opendatacommunities.org/id/london-borough-council/sutton,London Borough of Sutton,03/03/2022,10006994,19.88, AMZNBUSINESS 2X6TG34W4,"SPLIT - DURACELL PLUS 9V ALKALINE BATTERIES [PACK OF 4], 6LR61 MN1604 (100%)",Health and Wellbeing,Publicity,A44266,
http://opendatacommunities.org/id/london-borough-council/sutton,London Borough of Sutton,03/03/2022,10006994,108.76, AMZNBUSINESS 2X5214FA4,"SPLIT - R�DE VIDEOMIC PRO PROFESSIONAL ON-CAMERA SHOTGUN MICROPHONE WITH HIGH-PASS FILTER AND PAD FOR FILMMAKING, CONTENT CREATION AND LOCATION RECORDING (100%)",Health and Wellbeing,Publicity,A44266,
http://opendatacommunities.org/id/london-borough-council/sutton,London Borough of Sutton,28/02/2022,10006994,499.97, FACEBK  ZCY6LAX6A2,FACEBOOK 280222 499.97,Health and Wellbeing,Publicity,A44266,
http://opendatacommunities.org/id/london-borough-council/sutton,London Borough of Sutton,24/03/2022,10006994,37.98, AMZNMKTPLACE,"SPLIT - EMKE FRAMELESS BATHROOM MIRROR, WALL MOUNTED MIRROR RECTANGLE VANITY MIRRORS 70X50CM (100%)",Health and Wellbeing,Other Property Repairs & Maintenance,A20007,
http://opendatacommunities.org/id/london-borough-council/sutton,London Borough of Sutton,28/02/2022,10006994,159.00, TVLICENSING.CO.UK,TV LICENCE 159.00 280222,Health and Wellbeing,Subscriptions,A47010,
http://opendatacommunities.org/id/london-borough-council/sutton,London Borough of Sutton,28/02/2022,10006994,4.60, SAINSBURYS S/MKTS,COOKERY,Health and Wellbeing,Equipment And Materials Purchase,A40000,
http://opendatacommunities.org/id/london-borough-council/sutton,London Borough of Sutton,28/02/2022,10006994,24.51, ASDA STORES,COOKERY,Health and Wellbeing,Equipment And Materials Purchase,A40000,
http://opendatacommunities.org/id/london-borough-council/sutton,London Borough of Sutton,02/03/2022,10006994,14.27, SAINSBURYS S/MKTS,COOKERY,Health and Wellbeing,Equipment And Materials Purchase,A40000,
http://opendatacommunities.org/id/london-borough-council/sutton,London Borough of Sutton,23/03/2022,10006994,14.72, SAINSBURYS S/MKTS,SUPPORTED LEARNING COOKERY INGREDIENTS,Health and Wellbeing,Equipment And Materials Purchase,A40000,
http://opendatacommunities.org/id/london-borough-council/sutton,London Borough of Sutton,16/03/2022,10006994,15.96, SAINSBURYS S/MKTS,COOKERY,Health and Wellbeing,Equipment And Materials Purchase,A40000,
http://opendatacommunities.org/id/london-borough-council/sutton,London Borough of Sutton,09/03/2022,10006994,16.72, SAINSBURYS S/MKTS,COOKERY INCGREDIENTS,Health and Wellbeing,Equipment And Materials Purchase,A40000,
http://opendatacommunities.org/id/london-borough-council/sutton,London Borough of Sutton,03/03/2022,10006994,6.26, AMAZON.CO.UK 2X3K344G4,SPLIT - THE LAST EVER AFTER: BOOK 3 (THE SCHOOL FOR GOOD AND EVIL) (48.87%),Peoples Services,LAC - Education,A44280,
http://opendatacommunities.org/id/london-borough-council/sutton,London Borough of Sutton,03/03/2022,10006994,2.92, AMZNMKTPLACE,"SPLIT - WINSOR & NEWTON 1005754 DRAWING INK BOTTLE, 14 ML - LIQUID INDIAN INK (25.95%)",Peoples Services,LAC - Education,A44280,
http://opendatacommunities.org/id/london-borough-council/sutton,London Borough of Sutton,03/03/2022,10006994,8.99, AMAZON.CO.UK 2X4J784L4,SPLIT - GRADE 9-1 GCSE COMBINED SCIENCE: OCR GATEWAY EXAM PRACTICE WORKBOOK - FOUNDATION: PERFECT FOR CATCH-UP AND THE 2022 AND 2023 EXAMS (CGP GCSE COMBINED (100%),Peoples Services,LAC - Education,A44280,
http://opendatacommunities.org/id/london-borough-council/sutton,London Borough of Sutton,03/03/2022,10006994,2.78, CCI HOTEL RES,FOREIGN EXCHANGE FEE APPLIED DUE TO US CONVERSION FOR PURCHASES,Peoples Services,LAC - Education,A44280,
http://opendatacommunities.org/id/london-borough-council/sutton,London Borough of Sutton,02/03/2022,10006994,101.25, CCI HOTEL RES,HOTEL ACCOMMODATION FOR SM TO ATTEND 2 DAY NAVSH CONFERENCE,Peoples Services,LAC - Education,A44280,
http://opendatacommunities.org/id/london-borough-council/sutton,London Borough of Sutton,02/03/2022,10006994,5.03, AMAZON.CO.UK 2R1877Y94,SPLIT - WHERE THE WORLD ENDS (100%),Peoples Services,LAC - Education,A44280,
http://opendatacommunities.org/id/london-borough-council/sutton,London Borough of Sutton,02/03/2022,10006994,2.49, AMZNMKTPLACE,SPLIT - ASHTON AND WRIGHT - CLASSIC ERASER - LATEX FREE PLASTIC RUBBER - PACK OF 5 TROPICAL NEON (100%),Peoples Services,LAC - Education,A44280,
http://opendatacommunities.org/id/london-borough-council/sutton,London Borough of Sutton,02/03/2022,10006994,2.92, AMZNMKTPLACE,SPLIT - SIMPLE FIDGET TOY - SMALL POP IT - 2 POP MINI - SENSORY TOYS FOR AUTISM - STRESS RELIEF (PACK OF 2) (46.98%),Peoples Services,LAC - Education,A44280,
http://opendatacommunities.org/id/london-borough-council/sutton,London Borough of Sutton,02/03/2022,10006994,3.29, AMZNMKTPLACE,SPLIT - 8 CHISEL TIPPED HIGHLIGHTERS (53.02%),Peoples Services,LAC - Education,A44280,
http://opendatacommunities.org/id/london-borough-council/sutton,London Borough of Sutton,02/03/2022,10006994,4.16, AMZNMKTPLACE,"SPLIT - KINBOM 6 PCS MINIATURE DETAIL PAINT BRUSH SET, FINE TIP PAINT BRUSH MINIATURE PAINTING KIT BRUSHES FOR WATERCOLOR ACRYLIC FACE PAINT NAIL ART MODEL PA (62.61%)",Peoples Services,LAC - Education,A44280,
http://opendatacommunities.org/id/london-borough-council/sutton,London Borough of Sutton,02/03/2022,10006994,2.48, AMZNMKTPLACE,"SPLIT - LIQUIDRAW WHITE GEL PENS FOR ART, BLACK PAPER 0.8MM FINE POINT GEL PEN FOR ARTISTS, HIGHLIGHTS, DRAWING, WRITING & SKETCHING DESIGNS (37.39%)",Peoples Services,LAC - Education,A44280,
http://opendatacommunities.org/id/london-borough-council/sutton,London Borough of Sutton,02/03/2022,10006994,3.22, AMZNMKTPLACE,SPLIT - HELIX OXFORD CLASH TWIN PACK OF ERASERS - BLUE (100%),Peoples Services,LAC - Education,A44280,
http://opendatacommunities.org/id/london-borough-council/sutton,London Borough of Sutton,02/03/2022,10006994,4.93, AMZNMKTPLACE,SPLIT - MAJOR BRUSHES ARTIST WATERCOLOUR PAINT TIN 36 BLOCKS RED METAL LID (100%),Peoples Services,LAC - Education,A44280,
http://opendatacommunities.org/id/london-borough-council/sutton,London Borough of Sutton,02/03/2022,10006994,4.28, AMZNMKTPLACE,SPLIT - PAPER MATE INKJOY CAPPED MEDIUM STANDARD COLOUR PENS (PACK OF 10) (100%),Peoples Services,LAC - Education,A44280,
http://opendatacommunities.org/id/london-borough-council/sutton,London Borough of Sutton,02/03/2022,10006994,4.31, AMZNMKTPLACE,SPLIT - UNI-BALL UNIB6 EYE FINE ROLLERBALL PEN - BLACK (PACK OF 3) (100%),Peoples Services,LAC - Education,A44280,
http://opendatacommunities.org/id/london-borough-council/sutton,London Borough of Sutton,01/03/2022,10006994,8.99, AMAZON.CO.UK 2R1QR5IK4,SPLIT - GRADE 9-1 GCSE COMBINED SCIENCE: OCR GATEWAY REVISION GUIDE WITH ONLINE EDITION - FOUNDATION: PERFECT FOR CATCH-UP AND THE 2022 AND 2023 EXAMS (CGP GC (100%),Peoples Services,LAC - Education,A44280,
http://opendatacommunities.org/id/london-borough-council/sutton,London Borough of Sutton,01/03/2022,10006994,2.00, AMAZON.CO.UK 2R93B7U04,SPLIT - GCSE COMBINED SCIENCE: OCR GATEWAY ANSWERS (FOR EXAM PRACTICE WORKBOOK) - FOUNDATION (CGP GCSE COMBINED SCIENCE 9-1 REVISION) (100%),Peoples Services,LAC - Education,A44280,
http://opendatacommunities.org/id/london-borough-council/sutton,London Borough of Sutton,28/02/2022,10006994,5.99, AMZNMKTPLACE AMAZON.CO,"SPLIT - IBEST PIPE CLEANERS | SET OF 17 CLEANING BRUSHES FOR SMALL SPACES | MULTI-SIZE STRAW, WINDOW AND AIRBRUSH CLEANER (100%)",Peoples Services,LAC - Education,A44280,
http://opendatacommunities.org/id/london-borough-council/sutton,London Borough of Sutton,28/02/2022,10006994,4.99, AMZNMKTPLACE,SPLIT - PIXCO 58MM LENS MACRO REVERSE RING CAMERA MOUNT ADAPTER FOR CANON EOS CAMERA WITH 58MM FILTER THREAD LENS FOR CANON EF EOS 350D 300D 700D 650D 7D 70D (9.78%),Peoples Services,LAC - Education,A44280,
http://opendatacommunities.org/id/london-borough-council/sutton,London Borough of Sutton,28/02/2022,10006994,31.04, AMZNMKTPLACE,"SPLIT - VBESTLIFE CAMERA FISHEYE LENS, 52MM 0.35X WIDE ANGLE FISHEYE LENS WITH LENS CAPS STORAGE POUCH FOR CANON/NIKON/SONY/MINOLTA/PANSONIC/OLYMPUS/PENTAX SL (60.84%)",Peoples Services,LAC - Education,A44280,
http://opendatacommunities.org/id/london-borough-council/sutton,London Borough of Sutton,28/02/2022,10006994,14.99, AMZNMKTPLACE,"SPLIT - JJC 58MM CLOSE-UP FILTER KIT MACRO LENS FILTER (+2,+4,+8,+10) 4 PIECES/SET WITH LENS FILTER POUCH FOR CANON NIKON SONY PENTAX OLYMPUS FUJI DSLR CAMERA (29.38%)",Peoples Services,LAC - Education,A44280,
http://opendatacommunities.org/id/london-borough-council/sutton,London Borough of Sutton,28/02/2022,10006994,147.91, AMZNMKTPLACE,"SPLIT - ACER CHROMEBOOK 314 CB314-H - (INTEL CELERON N4000, 4GB RAM, 32GB EMMC, 14 INCH HD DISPLAY, CHROME OS, SILVER) (100%)",Peoples Services,LAC - Education,A44280,
http://opendatacommunities.org/id/london-borough-council/sutton,London Borough of Sutton,28/02/2022,10006994,149.63, AMAZON.CO.UK 2R5134K14,"SPLIT - ACER CHROMEBOOK 314 CB314-H - (INTEL CELERON N4000, 4GB RAM, 32GB EMMC, 14 INCH HD DISPLAY, CHROME OS, SILVER) (100%)",Peoples Services,LAC - Education,A44280,
http://opendatacommunities.org/id/london-borough-council/sutton,London Borough of Sutton,03/03/2022,10006994,6.55, AMAZON.CO.UK 2X9F514E4,"SPLIT - A WORLD WITHOUT PRINCES (THE SCHOOL FOR GOOD AND EVIL, BOOK 2) (100%)",Peoples Services,LAC - Education,A44280,
http://opendatacommunities.org/id/london-borough-council/sutton,London Borough of Sutton,03/03/2022,10006994,8.32, AMZNMKTPLACE,"SPLIT - DETAIL PAINT BRUSH SET 5PCS MINIATURE BRUSHES FOR FINE DETAILING & ART PAINTING - ACRYLIC, WATERCOLOR, OIL - MINIATURES MODELS, AIRPLANE KITS, NAIL.BL (74.05%)",Peoples Services,LAC - Education,A44280,
http://opendatacommunities.org/id/london-borough-council/sutton,London Borough of Sutton,25/03/2022,10006994,24.62, AMZNMKTPLACE AMAZON.CO,SPLIT - BMW 3-SERIES (06-14): 2006-14 (HAYNES REPAIR MANUAL) (100%),Peoples Services,LAC - Education,A44280,
http://opendatacommunities.org/id/london-borough-council/sutton,London Borough of Sutton,24/03/2022,10006994,6.78, AMZNMKTPLACE AMAZON.CO,SPLIT - SPORTS CARS (MOTORMANIA) (57.22%),Peoples Services,LAC - Education,A44280,
http://opendatacommunities.org/id/london-borough-council/sutton,London Borough of Sutton,24/03/2022,10006994,4.22, AMZNMKTPLACE AMAZON.CO,SPLIT - SPORTS CARS TOP TRUMPS CARD GAME (42.78%),Peoples Services,LAC - Education,A44280,
http://opendatacommunities.org/id/london-borough-council/sutton,London Borough of Sutton,14/03/2022,10006994,5.79, AMAZON.CO.UK 2X4Z33RY4,SPLIT - THE FUNNY LIFE OF TEACHERS (31.76%),Peoples Services,LAC - Education,A44280,
http://opendatacommunities.org/id/london-borough-council/sutton,London Borough of Sutton,14/03/2022,10006994,10.37, AMAZON.CO.UK 2X4Z33RY4,SPLIT - NEW CASIO FX-83GTX SCIENTIFIC CALCULATOR (68.24%),Peoples Services,LAC - Education,A44280,
http://opendatacommunities.org/id/london-borough-council/sutton,London Borough of Sutton,09/03/2022,10006994,382.80, GOVERNMENT EVENTS,COURSE ATTENDANCE FEE FOR GD TO ATTEND CLA TRAINING,Peoples Services,LAC - Education,A44280,
http://opendatacommunities.org/id/london-borough-council/sutton,London Borough of Sutton,09/03/2022,10006994,165.00, ANNA FREUD CENTRE,"""REDACTED - PERSONAL DATA""CENTRELONDON,  UNK  N1 9JH",Peoples Services,LAC - Education,A44280,
http://opendatacommunities.org/id/london-borough-council/sutton,London Borough of Sutton,03/03/2022,10006994,5.03, AMAZON.CO.UK 2X5CV34B4,SPLIT - FUTURE ENGINEER (FUTURE BABY BOARDBOOKS) (15%),Peoples Services,LAC - Education,A44280,
http://opendatacommunities.org/id/london-borough-council/sutton,London Borough of Sutton,03/03/2022,10006994,23.75, AMAZON.CO.UK 2X5CV34B4,SPLIT - B. TOYS BY BATTAT - BRISTLE BLOCK SPINAROOS - THE OFFICIAL BRISTLE BLOCKS - TOY BUILDING BLOCKS FOR TODDLERS (75PIECE) (85%),Peoples Services,LAC - Education,A44280,
http://opendatacommunities.org/id/london-borough-council/sutton,London Borough of Sutton,03/03/2022,10006994,6.55, AMAZON.CO.UK 2X3K344G4,"SPLIT - THE SCHOOL FOR GOOD AND EVIL (THE SCHOOL FOR GOOD AND EVIL, BOOK 1) (51.13%)",Peoples Services,LAC - Education,A44280,
